fUST/lending_fUST_20250404
["ID","MTS","AMOUNT","RATE_DAILY","PERIOD"]
[357091190,1743714646843,-318.0,0.00018733,2]
[357091191,1743714646853,-357.0,0.00018733,2]
[357091192,1743714646862,-318.0,0.00018733,2]
[357091193,1743714646871,-357.0,0.00018733,2]
[357091194,1743714646879,-318.0,0.00018733,2]
[357091195,1743714646888,-357.0,0.00018733,2]
[357091196,1743714646897,-318.0,0.00018733,2]
[357091197,1743714646907,-357.0,0.00018733,2]
[357091198,1743714646915,-318.0,0.00018733,2]
[357091199,1743714646926,-357.0,0.00018733,2]
[357091200,1743714646937,-357.0,0.00018733,2]
[357091201,1743714646946,-318.0,0.00018733,2]
[357091202,1743714646956,-357.0,0.00018733,2]
[357091203,1743714646967,-324.94089576,0.00018733,2]
[357091204,1743714646979,-357.0,0.00018733,2]
[357091205,1743714646990,-357.0,0.00018733,2]
[357091206,1743714646999,-357.0,0.00018733,2]
[357091207,1743714647008,-357.0,0.00018733,2]
[357091208,1743714647017,-357.0,0.00018733,2]
[357091209,1743714647028,-357.0,0.00018733,2]
[357091210,1743714647037,-294.03977088,0.00018733,2]
[357091211,1743714647046,-2200.0,0.00018735,2]
[357091212,1743714647055,-500.0,0.00018786,2]
[357091213,1743714647064,-1963.1,0.00018786,2]
[357091214,1743714647074,-2966.13756743,0.00018866,2]
[357091222,1743715650154,-986.358232,0.00016288,2]
[357091223,1743715650176,-829.98928066,0.0001635,2]
[357091264,1743715836836,-429.56770144,0.0001635,2]
[357091265,1743715836846,-70.43229856,0.00016767,2]
[357091278,1743715838526,-93.15997042,0.00016767,2]
[357091279,1743715838536,-160.0,0.00016867,2]
[357091280,1743715838546,-781.25,0.00016867,2]
[357091281,1743715838556,-419.04650234,0.00016868,2]
[357091282,1743715838566,-160.0,0.00016868,2]
[357091283,1743715838576,-500.0,0.00016869,2]
[357091284,1743715838586,-500.0,0.00017143,2]
[357091285,1743715838595,-163.59226898,0.00017315,2]
[357091286,1743715838605,-162.98818973,0.00017416,2]
[357091287,1743715838620,-338.51841655,0.00017416,2]
[357091288,1743715838629,-150.0,0.00017431,2]
[357091289,1743715838639,-232.86442144,0.00017431,2]
[357091290,1743715838648,-2159.52286233,0.000177,2]
[357091291,1743715838659,-200.0,0.00017789,2]
[357091292,1743715838668,-300.0,0.00017797,2]
[357091293,1743715838677,-500.0,0.00017798,2]
[357091294,1743715838688,-500.0,0.00017798,2]
[357091295,1743715838698,-500.0,0.00017798,2]
[357091296,1743715838708,-500.0,0.00017799,2]
[357091297,1743715838718,-500.0,0.00017799,2]
[357091298,1743715838728,-177.54426275,0.00017799,2]
[357091299,1743715838738,-418.72816033,0.00017799,2]
[357091300,1743715838748,-500.0,0.00017799,2]
[357091301,1743715838758,-172.24997862,0.00017799,2]
[357091302,1743715838767,-500.0,0.00017799,2]
[357091303,1743715838777,-500.0,0.00017799,2]
[357091304,1743715838786,-500.0,0.00017799,2]
[357091305,1743715838796,-307.85272884,0.00017799,2]
[357091306,1743715838805,-500.0,0.00017799,2]
[357091307,1743715838815,-500.0,0.00017799,2]
[357091308,1743715838824,-500.0,0.00017799,2]
[357091309,1743715838834,-1308.73,0.00017799,2]
[357091310,1743715838844,-500.0,0.00017799,2]
[357091311,1743715838853,-32754.30528944,0.000178,2]
[357091345,1743715840863,-1867.854828,0.000178,2]
[357091347,1743715840876,-42780.78457249,0.000178,2]
[357091358,1743715840979,-2808.88207405,0.000178,2]
[357091368,1743715843573,-325.37461994,0.000178,2]
[357091369,1743715843631,-12907.36412238,0.000178,2]
[357091419,1743716141483,1000.0,0.00025,30]
[357091500,1743716843313,-361.27351625,0.00016453,2]
[357091542,1743717038538,-1263.29938455,0.00016453,2]
[357091543,1743717038550,-4023.95934771,0.00016587,2]
[357091626,1743717046818,-542.48,0.00016587,2]
[357091627,1743717046833,-441.8099972,0.00016587,2]
[357091748,1743718000133,-300.0,0.00015498,2]
[357091749,1743718000155,-12805.209582,0.00015499,2]
[357091792,1743718231990,-500.0,0.00015498,2]
[357091793,1743718232001,-8552.0461751,0.00015499,2]
[357091794,1743718232012,-256.3555329,0.00015576,2]
[357091795,1743718232021,-488.0946285,0.0001563,2]
[357091796,1743718232031,-300.0,0.0001577,2]
[357091797,1743718232040,-500.0,0.00015772,2]
[357091798,1743718232049,-500.0,0.00016046,2]
[357091799,1743718232058,-500.0,0.00016252,2]
[357091800,1743718232068,-500.0,0.00016252,2]
[357091801,1743718232077,-203.70107194,0.00016252,2]
[357091802,1743718232086,-4804.9916989,0.00016253,2]
[357091803,1743718232096,-262.321756,0.00016253,2]
[357091804,1743718232105,-500.0,0.0001632,2]
[357091805,1743718232114,-519.31373106,0.00016353,2]
[357091806,1743718232123,-2971.1004721,0.00016481,3]
[357091807,1743718232132,-14624.10666837,0.00016481,3]
[357091809,1743718232142,-36502.62725891,0.00016481,2]
[357091811,1743718232151,-198.9639731,0.00016482,2]
[357091813,1743718232161,-500.0,0.00016586,2]
[357091815,1743718232171,-500.0,0.00016586,2]
[357091817,1743718232179,-500.0,0.00016586,2]
[357091819,1743718232189,-500.0,0.00016586,2]
[357091821,1743718232198,-500.0,0.00016586,2]
[357091823,1743718232207,-417.17,0.00016594,2]
[357091825,1743718232217,-500.0,0.0001686,2]
[357091827,1743718232226,-500.0,0.0001686,2]
[357091829,1743718232236,-500.0,0.0001686,2]
[357091831,1743718232245,-500.0,0.0001686,2]
[357091833,1743718232255,-160.0,0.00016864,2]
[357091834,1743718232264,-160.0,0.00016864,2]
[357091835,1743718232273,-419.04650234,0.00016864,2]
[357091836,1743718232282,-160.0,0.00016864,2]
[357091837,1743718232292,-176.849,0.0001689,2]
[357091838,1743718232301,-151.0,0.00017062,2]
[357091839,1743718232310,-151.0,0.00017062,2]
[357091840,1743718232320,-151.0,0.00017062,2]
[357091841,1743718232329,-151.0,0.00017062,2]
[357091842,1743718232339,-151.0,0.00017062,2]
[357091843,1743718232348,-151.0,0.00017062,2]
[357091844,1743718232357,-151.0,0.00017062,2]
[357091845,1743718232367,-151.0,0.00017062,2]
[357091846,1743718232382,-500.0,0.00017134,2]
[357091847,1743718232392,-500.0,0.00017134,2]
[357091848,1743718232402,-500.0,0.00017134,2]
[357091849,1743718232411,-500.0,0.00017134,2]
[357091850,1743718232421,-420.0,0.00017246,2]
[357091851,1743718232431,-190.23558621,0.00017373,2]
[357091852,1743718232440,-500.0,0.00017408,2]
[357091853,1743718232449,-500.0,0.00017408,2]
[357091854,1743718232459,-500.0,0.00017408,2]
[357091856,1743718232469,-581.18,0.00017408,2]
[357091857,1743718232478,-500.0,0.00017473,2]
[357091858,1743718232488,-500.0,0.00017473,2]
[357091859,1743718232498,-500.0,0.00017473,2]
[357091860,1743718232507,-1262.51,0.00017473,2]
[357091861,1743718232517,-500.0,0.00017473,2]
[357091862,1743718232527,-150.0,0.00017485,2]
[357091863,1743718232537,-150.0,0.00017485,2]
[357091864,1743718232546,-150.0,0.00017485,2]
[357091865,1743718232556,-538.601,0.00017485,2]
[357091866,1743718232566,-284.98,0.00017682,2]
[357091867,1743718232576,-500.0,0.00017682,2]
[357091868,1743718232585,-169.42,0.00017682,2]
[357091869,1743718232595,-5163.05164913,0.000177,2]
[357091870,1743718232604,-500.0,0.00017747,2]
[357091871,1743718232614,-500.0,0.00017747,2]
[357091872,1743718232625,-500.0,0.00017747,2]
[357091873,1743718232637,-1262.51,0.00017747,2]
[357091874,1743718232648,-500.0,0.00017747,2]
[357091875,1743718232657,-200.0,0.00017889,2]
[357091876,1743718232667,-500.0,0.00017899,2]
[357091877,1743718232677,-420.81550372,0.00017899,2]
[357091878,1743718232687,-5163.05164888,0.000179,2]
[357091879,1743718232697,-126000.00095488,0.000179,2]
[357091902,1743718237989,-500.0,0.00016859,2]
[357091903,1743718238000,-446.37722602,0.00016859,2]
[357091904,1743718238013,-53.62277398,0.00016859,2]
[357091905,1743718238023,-421.14849759,0.00016859,2]
[357091906,1743718238034,-401.0,0.00017535,2]
[357091907,1743718238044,-386.84142783,0.00017889,2]
[357091908,1743718238055,-29790.24913538,0.000179,2]
[357091909,1743718238067,-10771.14997504,0.000179,2]
[357091926,1743718240129,-290.77627598,0.000179,2]
[357091927,1743718240187,-106572.1751795,0.000179,2]
[357091929,1743718240199,-28256.12876068,0.000179,2]
[357091930,1743718240209,-190.2355862,0.000179,2]
[357091931,1743718240219,-500.0,0.00017956,2]
[357091932,1743718240228,-12086.15736463,0.00018,2]
[357091943,1743718243080,-193.96326458,0.00017899,2]
[357091944,1743718243090,-1262.17113342,0.00018,2]
[357091945,1743718243101,-1483.22075354,0.00018,2]
[357091946,1743718243113,-358.30939529,0.00018,2]
[357092062,1743718246004,-652.9500001,0.00018,2]
[357092108,1743718951789,13308.59093707,0.00025,30]
[357092121,1743719250121,-500.0,0.00015497,2]
[357092122,1743719250145,-300.0,0.00015563,2]
[357092123,1743719250167,-870.84011301,0.00015564,2]
[357092155,1743719432145,-270.46652466,0.00015407,2]
[357092156,1743719432155,-300.0,0.00015563,2]
[357092157,1743719432165,-1149.53347614,0.00015564,2]
[357092159,1743719432228,-434.51138994,0.00015564,2]
[357092161,1743719432316,-9447.64596541,0.00015564,2]
[357092162,1743719432326,-2330.17914554,0.00016219,2]
[357092163,1743719432336,-500.0,0.00016318,2]
[357092164,1743719432526,-500.0,0.00016319,2]
[357092165,1743719432537,-500.0,0.00016319,2]
[357092166,1743719432546,-364.25088063,0.00016319,2]
[357092167,1743719432556,-500.0,0.00016319,2]
[357092168,1743719432566,-1157.31,0.00016319,2]
[357092169,1743719432575,-500.0,0.00016592,2]
[357092170,1743719432583,-50000.0,0.00016592,2]
[357092171,1743719432593,-500.0,0.00016593,2]
[357092172,1743719432602,-500.0,0.00016593,2]
[357092173,1743719432612,-500.0,0.00016593,2]
[357092174,1743719432621,-1157.31,0.00016593,2]
[357092175,1743719432630,-500.0,0.00016754,2]
[357092176,1743719432639,-500.0,0.00016754,2]
[357092177,1743719432649,-500.0,0.00016754,2]
[357092178,1743719432659,-500.0,0.00016754,2]
[357092179,1743719432668,-372.46444661,0.00016754,2]
[357092180,1743719432678,-500.0,0.00016754,2]
[357092181,1743719432687,-500.0,0.00016754,2]
[357092182,1743719432697,-180.14,0.00016754,2]
[357092183,1743719432710,-500.0,0.00016754,2]
[357092184,1743719432719,-160.0,0.00016853,2]
[357092185,1743719432729,-160.0,0.00016853,2]
[357092186,1743719432738,-500.0,0.00016866,2]
[357092187,1743719432748,-353.1616663,0.00016866,2]
[357092188,1743719432758,-500.0,0.00016867,2]
[357092189,1743719432767,-500.0,0.00016867,2]
[357092190,1743719432777,-500.0,0.00016867,2]
[357092191,1743719432787,-1157.31,0.00016867,2]
[357092192,1743719432796,-420.0,0.00017023,2]
[357092193,1743719432805,-500.0,0.00017028,2]
[357092194,1743719432816,-500.0,0.00017028,2]
[357092195,1743719432825,-500.0,0.00017028,2]
[357092196,1743719432834,-200.0,0.00017062,2]
[357092197,1743719432844,-500.0,0.0001714,2]
[357092198,1743719432853,-500.0,0.00017141,2]
[357092199,1743719432863,-500.0,0.00017141,2]
[357092200,1743719432872,-500.0,0.00017141,2]
[357092201,1743719432882,-1157.31,0.00017141,2]
[357092202,1743719432891,-500.0,0.00017302,2]
[357092203,1743719432901,-500.0,0.00017302,2]
[357092204,1743719432910,-500.0,0.00017302,2]
[357092205,1743719432919,-500.0,0.00017414,2]
[357092206,1743719432928,-500.0,0.00017415,2]
[357092207,1743719432938,-500.0,0.00017415,2]
[357092208,1743719432947,-500.0,0.00017415,2]
[357092209,1743719432956,-1157.31,0.00017415,2]
[357092210,1743719432969,-500.0,0.00017576,2]
[357092211,1743719432979,-500.0,0.00017576,2]
[357092212,1743719432988,-500.0,0.00017576,2]
[357092213,1743719432997,-4818.84820566,0.000176,2]
[357092214,1743719433008,-500.0,0.00017688,2]
[357092215,1743719433018,-500.0,0.00017689,2]
[357092216,1743719433028,-500.0,0.00017689,2]
[357092217,1743719433037,-517.3,0.00017689,2]
[357092218,1743719433047,-1157.31,0.00017689,2]
[357092219,1743719433057,-150.0,0.00017785,2]
[357092220,1743719433067,-500.0,0.0001785,2]
[357092221,1743719433077,-500.0,0.0001785,2]
[357092222,1743719433087,-500.0,0.0001785,2]
[357092223,1743719433097,-419.04650234,0.00017892,2]
[357092224,1743719433107,-500.0,0.00017899,2]
[357092225,1743719433117,-282.13881476,0.00017899,2]
[357092226,1743719433126,-205.11859607,0.00017899,2]
[357092227,1743719433136,-4818.84820562,0.00017934,2]
[357092228,1743719433146,-500.0,0.00017962,2]
[357092229,1743719433156,-500.0,0.00017963,2]
[357092230,1743719433167,-500.0,0.00017963,2]
[357092231,1743719433177,-1157.31,0.00017963,2]
[357092232,1743719433188,-339.80974002,0.00017968,2]
[357092233,1743719433199,-18635.47700913,0.00018,2]
[357092234,1743719433208,-359.5753439,0.00018055,2]
[357092235,1743719433218,-359.5753439,0.00018055,2]
[357092236,1743719433228,-326.2547567,0.00018055,2]
[357092237,1743719433238,-500.0,0.00018124,2]
[357092238,1743719433248,-500.0,0.00018124,2]
[357092239,1743719433257,-500.0,0.00018124,2]
[357092240,1743719433267,-500.0,0.00018173,2]
[357092241,1743719433277,-500.0,0.00018236,2]
[357092242,1743719433287,-500.0,0.00018237,2]
[357092243,1743719433297,-500.0,0.00018237,2]
[357092244,1743719433307,-1157.31,0.00018237,2]
[357092245,1743719433317,-534.7249736,0.000183,2]
[357092246,1743719433327,-500.0,0.00018398,2]
[357092247,1743719433337,-500.0,0.00018398,2]
[357092248,1743719433347,-500.0,0.00018398,2]
[357092249,1743719433356,-500.0,0.00018447,2]
[357092250,1743719433367,-294.2,0.0001851,2]
[357092251,1743719433377,-500.0,0.00018511,2]
[357092252,1743719433386,-644.27,0.00018511,2]
[357092253,1743719433396,-1157.31,0.00018511,2]
[357092254,1743719433405,-587.0,0.0001862,2]
[357092255,1743719433415,-500.0,0.00018672,2]
[357092256,1743719433424,-418.24,0.00018672,2]
[357092257,1743719433434,-255.64,0.00018672,2]
[357092258,1743719433445,-500.0,0.00018721,2]
[357092259,1743719433455,-500.0,0.00018785,2]
[357092260,1743719433467,-1157.31,0.00018785,2]
[357092261,1743719433478,-169.33674182,0.00018799,2]
[357092262,1743719433488,-500.0,0.00018799,2]
[357092263,1743719433498,-280.34513781,0.00018799,2]
[357092264,1743719433510,-7291.67928889,0.000188,2]
[357092268,1743719438051,-419.04650234,0.00017886,2]
[357092269,1743719438061,-27011.40637766,0.000188,2]
[357092270,1743719438074,-616.97023573,0.000188,2]
[357092273,1743719440300,-429.99424976,0.000188,2]
[357092274,1743719440315,-1384.97985015,0.000188,2]
[357092275,1743719440380,-860.0,0.000188,2]
[357092285,1743719443225,-338.18235704,0.000188,2]
[357092318,1743720429183,-166.593297,0.00013699,2]
[357092319,1743720429205,-325.63687893,0.0001511,2]
[357092332,1743720632373,-182.994512,0.00014957,2]
[357092333,1743720632383,-209.5582095,0.00015077,2]
[357092334,1743720632394,-619.36263,0.000151,2]
[357092335,1743720632404,-988.0846385,0.0001511,2]
[357092336,1743720632416,-1308.97082547,0.0001511,2]
[357092337,1743720632426,-1556.4901541,0.00015307,2]
[357092338,1743720632436,-399.5072358,0.00015386,2]
[357092339,1743720632445,-300.0,0.00015683,2]
[357092340,1743720632455,-15981.4739002,0.00015684,2]
[357092341,1743720632465,-1011.7699973,0.00015835,2]
[357092342,1743720632474,-521.86,0.00016317,2]
[357092343,1743720632484,-500.0,0.00016318,2]
[357092344,1743720632493,-500.0,0.00016318,2]
[357092345,1743720632503,-152.0,0.0001638,2]
[357092346,1743720632512,-31914.80855642,0.00016477,2]
[357092347,1743720632522,-2628.70396989,0.00016491,2]
[357092348,1743720632531,-500.0,0.00016591,2]
[357092349,1743720632541,-500.0,0.00016591,2]
[357092350,1743720632551,-500.0,0.00016591,2]
[357092351,1743720632560,-702.16,0.00016591,2]
[357092352,1743720632570,-500.0,0.00016591,2]
[357092353,1743720632579,-500.0,0.00016591,2]
[357092354,1743720632589,-521.86,0.00016591,2]
[357092355,1743720632599,-675.09,0.00016591,2]
[357092356,1743720632608,-500.0,0.00016591,2]
[357092357,1743720632618,-500.0,0.00016592,2]
[357092358,1743720632627,-174.2976433,0.00016592,2]
[357092359,1743720632637,-193.0,0.00016749,2]
[357092360,1743720632647,-443.42808608,0.00016826,2]
[357092361,1743720632657,-422.02472019,0.00016845,2]
[357092362,1743720632667,-12517.44636928,0.00016846,2]
[357092363,1743720632676,-160.0,0.00016846,2]
[357092365,1743720632686,-419.04650234,0.00016846,2]
[357092367,1743720632695,-781.25,0.00016846,2]
[357092369,1743720632705,-160.0,0.00016846,2]
[357092371,1743720632714,-160.0,0.00016846,2]
[357092373,1743720632724,-500.0,0.00016865,2]
[357092375,1743720632734,-500.0,0.00016865,2]
[357092377,1743720632744,-702.16,0.00016865,2]
[357092379,1743720632753,-500.0,0.00016865,2]
[357092381,1743720632762,-500.0,0.00016865,2]
[357092383,1743720632772,-521.86,0.00016865,2]
[357092385,1743720632782,-675.09,0.00016865,2]
[357092387,1743720632791,-500.0,0.00016865,2]
[357092389,1743720632800,-507.00731561,0.00016866,2]
[357092391,1743720632810,-411.13325556,0.00016962,2]
[357092393,1743720632819,-196.39030354,0.00017062,2]
[357092396,1743720632829,-246.0,0.00017126,2]
[357092398,1743720632838,-500.0,0.00017139,2]
[357092400,1743720632848,-500.0,0.00017139,2]
[357092402,1743720632857,-702.16,0.00017139,2]
[357092404,1743720632866,-500.0,0.00017139,2]
[357092406,1743720632876,-500.0,0.00017139,2]
[357092408,1743720632886,-521.86,0.00017139,2]
[357092410,1743720632896,-675.09,0.00017139,2]
[357092411,1743720632906,-500.0,0.00017139,2]
[357092412,1743720632917,-420.0,0.00017152,2]
[357092413,1743720632928,-411.13325552,0.00017162,2]
[357092414,1743720632938,-411.13325552,0.00017362,2]
[357092415,1743720632949,-500.0,0.00017413,2]
[357092416,1743720632962,-500.0,0.00017413,2]
[357092417,1743720632971,-702.16,0.00017413,2]
[357092418,1743720632981,-500.0,0.00017413,2]
[357092419,1743720632990,-500.0,0.00017413,2]
[357092420,1743720632999,-521.86,0.00017413,2]
[357092421,1743720633008,-675.09,0.00017413,2]
[357092422,1743720633018,-500.0,0.00017413,2]
[357092423,1743720633027,-4962.41645981,0.000175,2]
[357092424,1743720633037,-314.0,0.00017511,2]
[357092425,1743720633047,-411.13325552,0.00017562,2]
[357092426,1743720633056,-500.0,0.00017687,2]
[357092427,1743720633066,-500.0,0.00017687,2]
[357092428,1743720633076,-702.16,0.00017687,2]
[357092429,1743720633086,-500.0,0.00017687,2]
[357092430,1743720633095,-500.0,0.00017687,2]
[357092431,1743720633105,-521.86,0.00017687,2]
[357092432,1743720633115,-675.09,0.00017687,2]
[357092433,1743720633124,-500.0,0.00017687,2]
[357092434,1743720633134,-411.13325552,0.00017762,2]
[357092435,1743720633144,-200.0,0.00017851,2]
[357092436,1743720633154,-500.0,0.00017861,2]
[357092437,1743720633164,-273.55548305,0.00017861,2]
[357092439,1743720633175,-1581.12835998,0.00017862,3]
[357092440,1743720633184,-7574.51699921,0.00017862,3]
[357092441,1743720633194,-366267.61200393,0.00017862,2]
[357092442,1743720633207,-3732.38799607,0.00017862,2]
[357092443,1743720633216,-217.986448,0.00017862,2]
[357092444,1743720633226,-217.986448,0.00017862,2]
[357092445,1743720633236,-341.317933,0.00017862,2]
[357092446,1743720633247,-341.317933,0.00017862,2]
[357092447,1743720633256,-4962.41645978,0.00017934,2]
[357092448,1743720633266,-500.0,0.00017961,2]
[357092449,1743720633276,-500.0,0.00017961,2]
[357092450,1743720633286,-702.16,0.00017961,2]
[357092451,1743720633295,-500.0,0.00017961,2]
[357092452,1743720633304,-500.0,0.00017961,2]
[357092453,1743720633314,-521.86,0.00017961,2]
[357092454,1743720633326,-675.09,0.00017961,2]
[357092455,1743720633339,-500.0,0.00017961,2]
[357092456,1743720633348,-4782.22188259,0.0001803,2]
[357092457,1743720633357,-150.0,0.00018116,2]
[357092458,1743720633367,-500.0,0.00018235,2]
[357092459,1743720633377,-500.0,0.00018235,2]
[357092460,1743720633386,-702.16,0.00018235,2]
[357092461,1743720633396,-500.0,0.00018235,2]
[357092462,1743720633407,-500.0,0.00018235,2]
[357092463,1743720633418,-521.86,0.00018235,2]
[357092464,1743720633428,-675.09,0.00018235,2]
[357092465,1743720633438,-500.0,0.00018235,2]
[357092466,1743720633448,-488.8477345,0.000183,2]
[357092467,1743720633459,-500.0,0.00018509,2]
[357092468,1743720633468,-500.0,0.00018509,2]
[357092469,1743720633478,-702.16,0.00018509,2]
[357092470,1743720633488,-500.0,0.00018509,2]
[357092471,1743720633498,-500.0,0.00018509,2]
[357092472,1743720633507,-521.86,0.00018509,2]
[357092473,1743720633517,-675.09,0.00018509,2]
[357092474,1743720633526,-500.0,0.00018509,2]
[357092475,1743720633536,-157.316971,0.00018588,3]
[357092476,1743720633545,-2628.70396988,0.00018621,2]
[357092477,1743720633555,-587.0,0.00018759,2]
[357092478,1743720633565,-500.0,0.00018783,2]
[357092479,1743720633575,-500.0,0.00018783,2]
[357092480,1743720633584,-702.16,0.00018783,2]
[357092481,1743720633594,-500.0,0.00018783,2]
[357092482,1743720633604,-500.0,0.00018783,2]
[357092483,1743720633613,-521.86,0.00018783,2]
[357092484,1743720633622,-675.09,0.00018783,2]
[357092485,1743720633632,-500.0,0.00018783,2]
[357092486,1743720633641,-151.0,0.00018784,2]
[357092487,1743720633651,-151.0,0.00018784,2]
[357092488,1743720633661,-151.0,0.00018784,2]
[357092489,1743720633670,-151.0,0.00018784,2]
[357092490,1743720633680,-151.0,0.00018784,2]
[357092491,1743720633689,-600.0,0.00018784,2]
[357092492,1743720633699,-600.0,0.00018784,2]
[357092493,1743720633709,-151.0,0.00018784,2]
[357092494,1743720633719,-151.0,0.00018784,2]
[357092495,1743720633728,-151.0,0.00018784,2]
[357092496,1743720633738,-151.0,0.00018784,2]
[357092497,1743720633748,-151.0,0.00018784,2]
[357092498,1743720633757,-151.0,0.00018784,2]
[357092499,1743720633767,-151.0,0.00018784,2]
[357092500,1743720633777,-151.0,0.00018784,2]
[357092501,1743720633787,-151.0,0.00018784,2]
[357092502,1743720633796,-170.819456,0.00018784,2]
[357092503,1743720633806,-170.819456,0.00018784,2]
[357092504,1743720633816,-204.529495,0.00018784,2]
[357092505,1743720633826,-217.986448,0.00018784,2]
[357092506,1743720633835,-217.986448,0.00018784,2]
[357092507,1743720633845,-341.317933,0.00018784,2]
[357092508,1743720633854,-341.317933,0.00018784,2]
[357092509,1743720633864,-151.0,0.00018784,2]
[357092510,1743720633874,-241.493785,0.00018784,2]
[357092511,1743720633885,-151.0,0.00018784,2]
[357092512,1743720633895,-151.0,0.00018784,2]
[357092513,1743720633904,-1686.822762,0.00018784,2]
[357092514,1743720633914,-1686.822762,0.00018784,2]
[357092515,1743720633924,-151.0,0.00018784,2]
[357092516,1743720634106,-151.0,0.00018784,2]
[357092517,1743720634116,-429.518536,0.00018784,2]
[357092518,1743720634127,-429.518536,0.00018784,2]
[357092519,1743720634138,-80751.31578723,0.000189,2]
[357092520,1743720634148,-151.0,0.000189,2]
[357092521,1743720634157,-151.0,0.000189,2]
[357092522,1743720634168,-151.0,0.000189,2]
[357092523,1743720634178,-151.0,0.000189,2]
[357092524,1743720634187,-151.0,0.000189,2]
[357092525,1743720634198,-151.0,0.000189,2]
[357092526,1743720634207,-600.0,0.000189,2]
[357092527,1743720634217,-176.84163903,0.000189,2]
[357092528,1743720634226,-600.0,0.000189,2]
[357092529,1743720634237,-151.0,0.000189,2]
[357092530,1743720634246,-151.0,0.000189,2]
[357092531,1743720634268,-151.0,0.000189,2]
[357092532,1743720634279,-151.0,0.000189,2]
[357092533,1743720634291,-151.0,0.000189,2]
[357092534,1743720634302,-151.0,0.000189,2]
[357092535,1743720634312,-248.14116,0.000189,2]
[357092536,1743720634325,-170.819456,0.000189,2]
[357092537,1743720634335,-170.819456,0.000189,2]
[357092538,1743720634346,-217.986448,0.000189,2]
[357092539,1743720634356,-217.986448,0.000189,2]
[357092540,1743720634367,-341.317933,0.000189,2]
[357092541,1743720634377,-341.317933,0.000189,2]
[357092542,1743720634388,-151.0,0.000189,2]
[357092543,1743720634399,-151.0,0.000189,2]
[357092544,1743720634409,-151.0,0.000189,2]
[357092545,1743720634419,-1686.822762,0.000189,2]
[357092546,1743720634430,-1686.822762,0.000189,2]
[357092547,1743720634440,-151.0,0.000189,2]
[357092548,1743720634451,-222.705351,0.000189,2]
[357092549,1743720634462,-429.518536,0.000189,2]
[357092550,1743720634473,-429.518536,0.000189,2]
[357092551,1743720634483,-4962.41645978,0.00018969,2]
[357092552,1743720634494,-166.83508303,0.00018973,2]
[357092553,1743720634504,-331.33396958,0.00018973,2]
[357092554,1743720634515,-537.85167297,0.00018973,2]
[357092555,1743720634525,-500.0,0.00018973,2]
[357092556,1743720634535,-500.0,0.00018973,2]
[357092557,1743720634545,-500.69334496,0.00018973,2]
[357092558,1743720634555,-500.0,0.00018973,2]
[357092559,1743720634565,-500.0,0.00018973,2]
[357092560,1743720634575,-159.94620212,0.00018973,2]
[357092561,1743720634585,-500.0,0.00018973,2]
[357092562,1743720634594,-500.0,0.00018973,2]
[357092563,1743720634604,-500.0,0.00018973,2]
[357092564,1743720634614,-400.0,0.00018973,2]
[357092565,1743720634624,-500.0,0.00018973,2]
[357092566,1743720634633,-500.0,0.00018973,2]